bitfinex-derivatives/quotes_ETHF0:USTF0_20241105
["timestamp","ask_amount","ask_price","bid_price","bid_amount"]
[1730775064052,0.6708,2403.7,2403.4,0.93378787]
[1730775064251,3.2078,2403.9,2403.6,1.34964944]
[1730775064451,3.3048,2404.2,2404.0,0.41623]
[1730775064646,3.3048,2404.2,2404.1,0.22204751]
[1730775064647,3.62401,2404.2,2404.1,0.22204751]
[1730775064846,7.78321,2404.2,2404.1,0.22204751]
[1730775065047,7.78321,2404.2,2403.6,1.34964944]
[1730775065258,3.62408,2403.8,2403.7,0.78491442]
[1730775065751,3.62408,2403.8,2403.7,0.22204376]
[1730775066146,3.8786,2403.8,2403.5,0.6416]
[1730775066343,3.8786,2403.8,2403.6,0.7847006]
[1730775066546,3.8786,2403.8,2403.6,0.41631]
[1730775066758,3.8786,2403.8,2403.7,0.22196688]
[1730775067452,3.2078,2403.8,2403.7,6.7104348]
[1730775067651,3.2078,2403.8,2403.7,7.61046739]
[1730775067850,3.2078,2403.8,2403.7,8.69909315]
[1730775068352,3.2078,2403.8,2403.7,7.61046739]
[1730775069850,3.2078,2403.8,2403.7,5.92593944]
[1730775070047,3.2078,2403.8,2403.7,2.09911317]
[1730775070250,3.2078,2403.8,2403.7,0.78367477]
[1730775070444,3.2078,2403.8,2403.7,0.63799702]
[1730775070652,3.2078,2403.8,2403.7,0.22170702]
[1730775070955,3.2078,2403.8,2403.7,0.63799702]
[1730775072452,3.2078,2403.8,2403.7,1.98764646]
[1730775073150,0.097,2404.2,2403.7,11.48827759]
[1730775073352,0.6868,2404.3,2403.8,1.34964944]
[1730775073655,0.6868,2404.3,2404.0,0.41623]
[1730775073656,1.10299,2404.3,2404.0,0.41623]
[1730775073847,0.6868,2404.3,2404.1,0.22147378]
[1730775074047,0.6868,2404.3,2404.1,1.34964944]
[1730775074247,41.4539,2404.4,2404.2,0.22147804]
[1730775074447,0.6868,2404.5,2404.1,1.34964944]
[1730775074648,0.6868,2404.5,2404.2,0.22142651]
[1730775074851,41.4868,2404.5,2404.1,1.34964944]
[1730775075054,41.4868,2404.5,2404.3,0.41618]
[1730775075749,41.4868,2404.5,2404.2,0.4162]
[1730775075950,41.4868,2404.5,2404.1,1.34964944]
[1730775076149,41.4868,2404.5,2404.3,0.41617]
[1730775076853,41.4868,2404.5,2404.1,1.34964944]
[1730775077058,41.4868,2404.5,2404.4,0.41617]
[1730775077359,44.6946,2404.5,2404.4,0.41617]
[1730775077957,41.4868,2404.5,2404.4,0.41617]
[1730775078557,41.4868,2404.5,2404.3,1.76582944]
[1730775078951,44.6946,2404.5,2404.1,1.76585944]
[1730775079151,44.6946,2404.5,2404.1,1.34964944]
[1730775079346,0.41618,2404.4,2404.1,1.34964944]
[1730775080151,0.41618,2404.4,2404.1,1.76586944]
[1730775080460,40.8,2404.3,2404.1,1.76586944]
[1730775080658,40.8,2404.3,2404.1,1.34964944]
[1730775080856,0.6745,2404.2,2404.1,1.76586944]
[1730775082057,1.3582,2404.2,2404.1,1.76586944]
[1730775082246,1.3582,2404.2,2404.1,1.34964944]
[1730775082956,1.3582,2404.2,2404.1,1.76586944]
[1730775086063,0.6745,2404.2,2404.1,1.76586944]
[1730775086255,1.3199,2404.2,2404.1,1.76586944]
[1730775086455,1.9997,2404.2,2404.1,1.76586944]
[1730775087164,2.4159,2404.2,2404.1,1.76586944]
[1730775087555,1.9997,2404.2,2404.1,1.76586944]
[1730775088559,1.9997,2404.2,2404.1,1.92126944]
[1730775093564,3.2078,2404.5,2404.1,1.50504944]
[1730775093770,0.6677,2404.4,2404.3,0.41619]
[1730775093965,41.4677,2404.4,2404.3,0.41619]
[1730775094269,0.6677,2404.4,2404.3,0.41619]
[1730775094758,3.2078,2404.5,2404.3,1.34964944]
[1730775094960,3.2078,2404.5,2404.4,1.76607]
[1730775095154,3.2078,2404.5,2404.4,2.43727]
[1730775095461,0.6764,2404.7,2404.6,0.41613]
[1730775095659,0.6764,2404.7,2404.6,1.76577944]
[1730775096364,0.6764,2404.7,2404.6,1.34964944]
[1730775096557,4.8348,2404.7,2404.6,1.34964944]
[1730775096757,0.41617,2404.4,2404.3,1.34964944]
[1730775096966,0.41619,2404.3,2404.2,1.34964944]
[1730775097263,1.3042,2404.3,2404.2,1.34964944]
[1730775097858,1.3042,2404.3,2404.1,3.77942]
[1730775097859,8.6712,2404.3,2404.1,0.1554]
[1730775098059,5.239,2404.2,2404.1,0.1554]
[1730775099371,8.4468,2404.2,2404.1,0.1554]
[1730775099562,7.7832,2404.2,2404.1,0.1554]
[1730775099863,0.41618,2404.4,2404.1,0.57162]
[1730775101061,3.2078,2404.5,2404.1,0.1554]
[1730775101258,0.41619,2404.3,2404.1,0.1554]
[1730775101470,0.64,2404.2,2404.1,0.57162]
[1730775102373,0.64,2404.2,2404.1,0.1554]
[1730775103166,0.64,2404.2,2404.1,0.57162]
[1730775103874,3.2078,2404.4,2404.1,0.37667128]
[1730775104177,3.2078,2404.4,2404.1,0.1554]
[1730775104376,3.2078,2404.4,2404.3,0.41619]
[1730775104668,3.2078,2404.4,2404.3,0.63750316]
[1730775104873,3.2078,2404.4,2404.3,0.41619]
[1730775105376,3.2078,2404.4,2404.3,0.63755965]
[1730775106269,3.2078,2404.4,2404.3,0.38046965]
[1730775106869,3.2078,2404.4,2404.3,0.1591]
[1730775107578,0.41616,2404.5,2404.3,0.38053575]
[1730775107779,0.41616,2404.5,2404.3,0.1591]
[1730775108682,0.41617,2404.4,2404.3,0.1591]
[1730775109374,0.41617,2404.4,2404.3,0.38071915]
[1730775109567,4.57537,2404.4,2404.3,0.38071915]
[1730775110368,7.78317,2404.4,2404.3,0.38071915]
[1730775110771,7.367,2404.4,2404.3,0.38071915]
[1730775110970,7.78317,2404.4,2404.3,0.38071915]
[1730775111167,7.78317,2404.4,2404.3,0.1591]
[1730775111481,7.78317,2404.4,2404.3,0.38077444]
[1730775114779,3.62397,2404.4,2404.3,0.38077444]
[1730775116683,3.2078,2404.4,2404.3,0.38077444]
[1730775117182,3.62397,2404.4,2404.3,0.38077444]
[1730775117381,3.2078,2404.4,2404.3,0.38077444]
[1730775118384,3.2078,2404.4,2404.3,0.1591]
[1730775118584,3.2078,2404.4,2404.3,0.38102556]
[1730775119984,0.41616,2404.5,2404.3,0.38102556]
[1730775120185,0.41616,2404.5,2404.4,0.22192556]
[1730775120383,3.2078,2404.5,2404.4,0.22192556]
[1730775120584,3.62395,2404.5,2404.4,0.22192556]
[1730775121080,3.2078,2404.5,2404.4,0.63808991]
[1730775121491,3.2078,2404.5,2404.4,0.41617]
[1730775121789,3.2078,2404.5,2404.4,0.63809496]
[1730775121991,3.2078,2404.5,2404.4,0.22192496]
[1730775122180,3.62395,2404.5,2404.4,0.22192496]
[1730775122790,0.41615,2404.5,2404.4,0.22192496]
[1730775124384,3.62395,2404.5,2404.3,0.1591]
[1730775124586,3.2078,2404.5,2404.4,0.22193426]
[1730775125586,3.62395,2404.5,2404.4,0.22193426]
[1730775126085,3.2078,2404.5,2404.4,0.38523426]
[1730775126487,1.9829,2404.6,2404.4,0.38523426]
[1730775126799,5.60683,2404.6,2404.5,0.22193426]
[1730775127986,5.60683,2404.6,2404.4,0.1633]
[1730775127987,0.41615,2404.5,2404.4,0.1633]
[1730775128183,0.41615,2404.5,2404.4,0.38525033]
[1730775129193,3.62395,2404.5,2404.4,0.38525033]
[1730775129489,3.2078,2404.5,2404.4,0.38525033]
[1730775129684,3.62395,2404.5,2404.4,0.38525033]
[1730775129996,3.2078,2404.5,2404.4,0.38525033]
[1730775130185,3.62395,2404.5,2404.4,0.38525033]
[1730775131488,3.62395,2404.5,2404.4,0.1633]
[1730775131683,0.41615,2404.5,2404.4,0.1633]
[1730775131882,0.41615,2404.5,2404.4,0.38524211]
[1730775132288,4.94325,2404.6,2404.4,0.38524211]
[1730775132488,4.94325,2404.6,2404.5,0.22194211]
[1730775132489,4.5271,2404.6,2404.5,0.22194211]
[1730775132689,4.94324,2404.6,2404.5,0.22194211]
[1730775135099,4.94324,2404.6,2404.4,0.8305]
[1730775135301,4.94324,2404.6,2404.5,0.22194575]
[1730775136293,1.73544,2404.6,2404.5,0.22194575]
[1730775136500,4.94324,2404.6,2404.5,0.22194575]
[1730775136997,1.73544,2404.6,2404.5,0.22194575]
[1730775137198,4.94324,2404.6,2404.5,0.22194575]
[1730775138304,4.5271,2404.6,2404.5,0.22194575]
[1730775138898,3.2078,2404.6,2404.5,0.22194575]
[1730775139194,0.097,2404.9,2404.5,4.94955447]
[1730775139391,0.097,2405.2,2404.7,1.34892846]
[1730775139594,5.06616774,2405.5,2405.2,0.41603]
[1730775139595,0.7426,2405.5,2405.2,0.41603]
[1730775139790,1.2903,2405.5,2405.3,0.22194575]
[1730775139998,1.2903,2405.5,2405.4,0.22194575]
[1730775140198,1.2903,2405.5,2405.3,1.34892846]
[1730775140591,1.70628,2405.5,2405.3,1.34892846]
[1730775140804,1.2903,2405.5,2405.3,1.34892846]
[1730775142106,1.70629,2405.5,2405.3,1.34892846]
[1730775142804,1.2903,2405.5,2405.3,1.34892846]
[1730775144602,1.2903,2405.5,2405.2,3.73555846]
[1730775144807,1.70628,2405.5,2405.2,3.73555846]
[1730775145408,1.70628,2405.5,2405.2,3.31952846]
[1730775145707,1.2903,2405.5,2405.2,3.73555846]
[1730775147903,4.4981,2405.5,2405.2,3.73555846]
[1730775148499,4.4981,2405.5,2405.2,3.31952846]
[1730775149207,4.4981,2405.5,2405.2,1.34892846]
[1730775149208,0.416,2405.4,2405.2,1.34892846]
[1730775149598,4.4981,2405.5,2405.0,1.34892846]
[1730775149807,4.4981,2405.5,2404.5,1.34892846]
[1730775149808,5.59683846,2405.2,2404.5,1.34892846]
[1730775150105,0.41615,2404.6,2404.4,0.1633]
[1730775150306,1.3278,2404.5,2404.4,0.57947]
[1730775150609,3.2078,2404.6,2404.4,0.57947]
[1730775150610,3.2078,2404.6,2404.5,0.41615]
[1730775150803,3.2078,2404.6,2404.5,1.76507846]
[1730775151101,3.2078,2404.6,2404.5,0.6883]
[1730775151102,44.0078,2404.6,2404.5,0.6883]
[1730775151302,44.42395,2404.6,2404.4,2.17782846]
[1730775152111,44.42395,2404.6,2404.4,2.01452846]
[1730775152300,44.0078,2404.6,2404.4,2.01452846]
[1730775152701,40.8,2404.6,2404.5,0.1675]
[1730775153103,44.0078,2404.6,2404.5,0.1675]
[1730775154512,44.42393,2404.6,2404.5,0.1675]
[1730775154717,45.05473,2404.6,2404.5,0.1675]
[1730775155306,45.32239503,2404.6,2404.5,0.1675]
[1730775155818,0.41626,2403.9,2403.8,0.097]
[1730775156018,2.08078,2404.5,2403.4,0.6784]
[1730775156019,3.2078,2404.0,2403.4,0.6784]
[1730775156216,3.6241,2403.7,2403.4,0.6784]
[1730775156516,3.6241,2403.7,2403.3,0.6564]
[1730775156704,0.41631,2403.6,2403.3,0.6564]
[1730775156911,3.2078,2403.7,2403.3,0.6564]
[1730775157108,0.41633,2403.5,2403.1,1.09479]
[1730775157307,0.41632,2403.6,2403.1,0.6784]
[1730775157503,3.2078,2403.7,2403.3,0.41635]
[1730775157713,3.2078,2403.7,2403.4,0.41633]
[1730775159315,2.92255882,2403.5,2402.7,3.3048]
[1730775159514,3.2078,2403.0,2402.7,0.6383]
[1730775159909,44.0078,2403.0,2402.7,1.05476]
[1730775160105,44.0078,2403.0,2402.8,0.41645]
[1730775160513,44.0078,2403.0,2402.7,0.6383]
[1730775160910,44.0078,2403.0,2402.7,1.05476]
[1730775161724,40.8,2403.0,2402.7,1.05476]
[1730775162109,44.0078,2403.0,2402.7,1.05476]
[1730775162310,44.0078,2403.0,2402.8,0.41644]
[1730775162912,3.2078,2403.0,2402.7,1.05476]
[1730775163817,3.2078,2403.0,2402.7,0.6383]
[1730775164009,3.2078,2403.0,2402.8,0.41644]
[1730775165318,3.2078,2403.0,2402.7,1.05475]
[1730775165924,3.2078,2403.0,2402.8,0.41645]
[1730775166813,3.2078,2403.0,2402.7,0.41645]
[1730775167014,3.2078,2403.0,2402.7,1.05225]
[1730775167525,3.2078,2403.0,2402.8,0.41645]
[1730775168523,3.2078,2403.1,2402.7,3.55835882]
[1730775168727,3.2078,2403.1,2402.9,0.41642]
[1730775168928,3.2078,2403.1,2402.8,0.41643]
[1730775169321,3.2078,2403.1,2402.6,0.6677]
[1730775169532,0.41642,2403.0,2402.6,1.08417]
[1730775169822,0.6589,2402.9,2402.6,0.6677]
[1730775170021,0.6589,2402.9,2402.6,1.08417]
[1730775170317,1.07534,2402.9,2402.6,0.6677]
[1730775170518,1.72724,2402.9,2402.6,0.6677]
[1730775170816,1.3108,2402.9,2402.6,0.41648]
[1730775172522,1.3108,2402.9,2402.5,1.3707]
[1730775172825,1.72724,2402.9,2402.6,0.41648]
[1730775174827,2.40484,2402.9,2402.6,0.41648]
[1730775176426,5.61264,2402.9,2402.6,0.41648]
[1730775176827,4.5186,2402.9,2402.7,0.41645]
[1730775177523,1.3108,2402.9,2402.7,0.41645]
[1730775177720,4.5186,2402.9,2402.7,0.41645]
[1730775177924,4.93503,2402.9,2402.6,0.41647]
[1730775178931,1.72723,2402.9,2402.6,0.41647]
[1730775179130,4.5186,2402.9,2402.5,1.3707]
[1730775179431,0.41645,2402.8,2402.5,1.3707]
[1730775179627,0.41645,2402.8,2402.6,0.41648]
[1730775179929,0.41645,2402.8,2402.5,1.10909]
[1730775179930,0.41646,2402.8,2402.5,1.10909]
[1730775180133,0.41646,2402.8,2402.6,0.41648]
[1730775181329,4.93504,2402.9,2402.6,0.41647]
[1730775182736,4.93504,2402.9,2402.5,0.6926]
[1730775183127,4.5186,2402.9,2402.7,0.41645]
[1730775183327,4.5186,2402.9,2402.5,0.6926]
[1730775183328,1.3108,2402.9,2402.8,0.41645]
[1730775184137,3.8523,2403.2,2402.5,1.73383]
[1730775184524,4.26868,2403.2,2402.9,0.41642]
[1730775184925,6.77485882,2403.2,2402.3,4.34613]
[1730775185135,0.4164,2403.1,2402.8,0.41644]
[1730775185630,0.4164,2403.1,2402.7,0.41645]
[1730775187034,3.2078,2403.0,2402.7,0.41645]
[1730775187234,0.6592,2402.9,2402.7,0.41645]
[1730775188236,0.6291,2402.8,2402.7,0.41645]
[1730775189146,0.6291,2402.8,2402.4,1.9939]
[1730775189331,0.6408,2402.7,2402.6,0.41647]
[1730775189536,0.0159008,2402.7,2402.6,0.41647]
[1730775190241,0.0159008,2402.7,2402.4,1.3079]
[1730775190440,3.2237008,2402.7,2401.9,3.3048]
[1730775190636,0.41654,2402.3,2402.1,0.41656]
[1730775191135,3.2078,2402.4,2401.7,0.11477]
[1730775191136,1.2911,2402.2,2401.7,0.11477]
[1730775191341,3.62438,2402.1,2401.8,0.41661]
[1730775191540,3.2078,2402.1,2401.9,0.4166]
[1730775191943,44.0078,2402.1,2401.9,0.4166]
[1730775193538,44.0078,2402.1,2401.7,0.68427]
[1730775193539,40.8,2402.1,2402.0,0.41659]
[1730775193946,1.2911,2402.2,2402.1,0.41657]
[1730775195045,0.51351,2402.5,2401.8,3.96409882]
[1730775195046,0.097,2402.5,2401.8,3.96409882]
[1730775195253,0.6244,2402.5,2402.4,0.41652]
[1730775198844,3.8468,2402.6,2402.1,3.04024584]
[1730775199043,3.8468,2402.6,2402.5,0.4165]
[1730775200146,3.8468,2402.6,2402.5,1.2086025]
[1730775200451,0.639,2402.6,2402.5,1.2086025]
[1730775201653,3.8945,2402.8,2402.5,0.6377222]
[1730775201854,3.8945,2402.8,2402.6,0.79261663]
[1730775202059,3.8945,2402.8,2402.7,1.20925389]
[1730775202255,3.8945,2402.8,2402.7,1.20940638]
[1730775204859,3.8945,2402.8,2402.7,0.79294638]
[1730775205458,3.8945,2402.8,2402.7,1.20940638]
[1730775206247,0.6867,2402.8,2402.7,1.20940638]
[1730775206452,3.8945,2402.8,2402.7,1.20940638]
[1730775206952,0.6867,2402.8,2402.7,1.20940638]
[1730775207155,3.8945,2402.8,2402.7,0.63787306]
[1730775207352,3.8945,2402.8,2402.7,1.20986734]
[1730775207758,0.6867,2402.8,2402.7,1.20986734]
[1730775207961,3.8945,2402.8,2402.7,0.63787306]
[1730775208754,0.6867,2402.8,2402.7,0.41646]
[1730775208960,0.6867,2402.8,2402.7,0.63810544]
[1730775212265,0.6867,2402.8,2402.7,0.41646]
[1730775212567,0.6867,2402.8,2402.7,0.63812603]
[1730775214259,0.6867,2402.8,2402.7,0.41646]
[1730775215462,0.6867,2402.8,2402.7,0.63813219]
[1730775224869,0.6867,2402.8,2402.7,0.63819032]
[1730775225071,42.77984507,2402.9,2402.8,0.41645]
[1730775225376,42.77984507,2402.9,2402.8,0.63818032]
[1730775227378,42.77984507,2402.9,2402.8,0.22173032]
[1730775228280,42.77984507,2402.9,2402.7,0.41645]
[1730775228677,42.77984507,2402.9,2402.8,0.63820909]
[1730775229073,42.77984507,2402.9,2402.8,0.22175909]
[1730775229382,47.35787507,2402.9,2402.8,0.22175909]
[1730775229770,47.35787507,2402.9,2402.8,0.22176992]
[1730775230775,46.94144507,2402.9,2402.8,0.22176992]
[1730775230971,47.35787507,2402.9,2402.8,0.22176992]
[1730775231385,50.14924507,2402.9,2402.8,0.22176992]
[1730775231981,50.14924507,2402.9,2402.8,0.22180264]
[1730775233189,45.98764507,2402.9,2402.8,0.22180264]
[1730775235483,45.98764507,2402.9,2402.7,0.41646]
[1730775235691,45.98764507,2402.9,2402.8,0.22183766]
[1730775236780,46.40408507,2402.9,2402.6,0.41647]
[1730775237683,46.40408507,2402.9,2402.7,0.41646]
[1730775237986,46.40408507,2402.9,2402.7,0.22184621]
[1730775238181,46.40408507,2402.9,2402.8,0.22184621]
[1730775238489,0.41648,2402.6,2402.3,0.41652]
[1730775238684,3.35464507,2402.5,2402.4,0.79456135]
[1730775239388,3.35464507,2402.5,2402.4,0.79470148]
[1730775239885,3.35464507,2402.5,2402.4,0.22189835]
[1730775240390,3.35464507,2402.5,2402.4,0.79484272]
[1730775241085,6.56244507,2402.5,2402.4,0.79484272]
[1730775241285,1.3527,2402.5,2402.4,1.21136272]
[1730775241490,5.22324507,2402.8,2402.6,0.41646]
[1730775241696,0.6729,2402.7,2402.6,0.41646]
[1730775241987,0.6729,2402.7,2402.6,0.6384829]
[1730775242182,0.6729,2402.7,2402.6,1.21149281]
[1730775242586,0.6729,2402.7,2402.6,0.79503281]
[1730775242888,0.6729,2402.7,2402.6,1.21151281]
[1730775243095,0.6729,2402.7,2402.6,0.79503281]
[1730775243280,2.02274507,2402.7,2402.6,1.21151281]
[1730775245586,2.02274507,2402.7,2402.6,1.21156358]
[1730775245986,0.6729,2402.7,2402.6,1.21156358]
[1730775246191,8.80599014,2402.7,2402.3,1.08754584]
[1730775246382,1.76634507,2402.5,2402.4,0.22212296]
[1730775246585,45.77414507,2402.5,2402.4,0.22212296]
[1730775246892,49.93654507,2402.5,2402.4,0.22212296]
[1730775247290,0.41652,2402.4,2402.1,0.6614]
[1730775247490,1.34984507,2402.3,2402.1,0.6614]
[1730775249095,4.55764507,2402.3,2402.1,0.6614]
[1730775249294,4.97418507,2402.3,2402.1,0.6614]
[1730775249488,0.6955,2402.2,2402.1,0.6614]
[1730775250784,0.6955,2402.2,2402.1,1.07797]
[1730775251185,40.8,2402.5,2402.3,0.41652]
[1730775251390,4.97411507,2402.7,2402.4,1.3497]
[1730775251591,4.97411507,2402.7,2402.5,0.6375]
[1730775251592,4.55764507,2402.7,2402.5,0.6375]
[1730775251783,4.55764507,2402.7,2402.6,0.41648]
[1730775251784,3.2078,2402.7,2402.6,0.41648]
[1730775251990,3.2078,2402.7,2402.5,1.05399]
[1730775252793,3.2078,2402.7,2402.6,0.41648]
[1730775255097,42.14984507,2403.0,2402.6,4.1624]
[1730775255400,42.14984507,2403.0,2402.7,0.41646]
[1730775255600,42.14984507,2403.0,2402.8,0.7022]
[1730775256096,42.14984507,2403.0,2402.9,0.7004]
[1730775259795,40.8,2403.0,2402.9,0.7004]
[1730775260195,3.9022,2403.1,2402.9,0.7004]
[1730775260391,4.3186,2403.1,2402.9,0.7004]
[1730775260707,45.1186,2403.1,2402.9,0.7004]
[1730775260889,44.7022,2403.1,2402.9,0.7004]
[1730775261290,44.7022,2403.1,2402.9,1.78322]
[1730775262090,44.7022,2403.1,2403.0,0.41641]
[1730775262091,3.2078,2403.1,2403.0,0.41641]
[1730775262300,1.34984507,2403.3,2403.1,0.41639]
[1730775262505,1.34984507,2403.3,2403.0,0.4164]
[1730775262711,1.34984507,2403.3,2402.9,2.71664507]
[1730775263003,0.097,2403.6,2403.5,0.41633]
[1730775263210,3.2078,2403.7,2403.3,1.3485]
[1730775263395,3.2078,2403.7,2403.4,0.41633]
[1730775264010,3.2078,2403.7,2403.3,2.0016]
[1730775264011,4.55764507,2403.7,2403.3,2.0016]
[1730775264197,5.62854507,2403.7,2403.3,2.41795]
[1730775264398,0.41631,2403.6,2403.3,2.41795]
[1730775264600,5.62854507,2403.7,2403.3,2.41795]
[1730775265403,5.62854507,2403.7,2403.3,2.0016]
[1730775265619,5.62854507,2403.7,2403.4,0.41634]
[1730775266111,3.2078,2403.6,2403.4,0.41634]
[1730775266504,2.42074507,2403.7,2403.4,0.41634]
[1730775266703,3.2078,2403.6,2403.4,0.41634]
[1730775267012,3.2078,2403.6,2403.3,2.41795]
[1730775267704,2.42074507,2403.7,2403.3,2.41795]
[1730775267900,3.2078,2403.6,2403.3,2.41795]
[1730775268101,3.2078,2403.6,2403.4,0.41634]
[1730775268296,3.2078,2403.6,2403.3,0.6531]
[1730775268508,3.2078,2403.6,2403.0,3.8524]
[1730775268509,1.34984507,2403.4,2403.0,3.8524]
[1730775268706,1.324,2403.3,2403.0,4.5313]
[1730775268901,40.8,2403.2,2403.1,0.41639]
[1730775271921,5.67698507,2403.5,2403.2,0.41637]
[1730775272313,40.8,2403.4,2403.3,0.6696]
[1730775274619,2.46917507,2403.5,2403.3,0.6696]
[1730775274815,3.2078,2403.4,2403.3,0.6696]
[1730775275914,3.62414,2403.4,2403.1,0.41638]
[1730775276117,3.2078,2403.4,2403.1,0.6462]
[1730775276316,3.2078,2403.4,2403.2,0.41637]
[1730775278518,46.47697507,2403.5,2403.2,0.41637]
[1730775279813,43.26917507,2403.5,2403.2,0.41637]
[1730775280016,46.47697507,2403.5,2403.2,0.41637]
[1730775280211,46.06064507,2403.5,2403.2,0.41637]
[1730775280615,42.85284507,2403.5,2403.2,0.41637]
[1730775280819,46.47697507,2403.5,2403.2,0.41637]
[1730775281224,43.26917507,2403.5,2403.2,0.41637]
[1730775281412,43.26917507,2403.5,2403.1,0.6462]
[1730775281413,46.06064507,2403.5,2403.3,0.41635]
[1730775283126,3.9108,2403.5,2403.1,1.99604507]
[1730775283323,3.2078,2403.5,2403.4,0.41634]
[1730775283625,3.2078,2403.5,2403.4,1.76618507]
[1730775283821,3.2078,2403.5,2403.4,5.92698507]
[1730775285525,1.3518,2403.8,2403.7,0.41629]
[1730775285721,3.8537,2403.8,2403.7,0.41629]
[1730775287220,0.6834,2404.0,2403.9,0.41626]
[1730775287419,5.24844507,2404.1,2403.9,0.41626]
[1730775288326,3.8986,2404.1,2404.0,0.41624]
[1730775288530,3.2078,2404.1,2404.0,0.41624]
[1730775288727,3.2078,2404.1,2404.0,1.76608507]
[1730775289433,3.2078,2404.1,2404.0,0.41624]
[1730775289729,3.2078,2404.1,2403.9,3.41834507]
[1730775289929,4.55764507,2404.1,2403.9,0.6962]
[1730775290120,4.55764507,2404.1,2403.6,4.55764507]
[1730775290121,0.41626,2403.9,2403.6,3.62409]
[1730775290629,3.36234507,2404.0,2403.6,3.62409]
[1730775291026,0.41627,2403.9,2403.6,3.62409]
[1730775291422,0.41627,2403.9,2403.7,0.41629]
[1730775291625,0.41627,2403.8,2403.6,3.6241]
[1730775292021,3.36234507,2404.0,2403.6,3.2078]
[1730775292232,3.36234507,2404.0,2403.5,0.6606]
[1730775292233,0.41631,2403.6,2403.4,0.41633]
[1730775292427,0.6741,2403.5,2403.3,1.34984507]
[1730775292723,0.6741,2403.5,2403.4,0.41634]
[1730775294735,0.6741,2403.5,2403.4,5.92698507]
[1730775295230,3.2078,2403.7,2403.6,0.41631]
[1730775297335,1.06507,2403.9,2403.6,0.41631]
[1730775297523,3.62408,2403.8,2403.4,1.34984507]
[1730775298434,3.62408,2403.8,2403.5,0.41632]
[1730775299129,0.41628,2403.8,2403.5,0.41632]
[1730775299530,3.62408,2403.8,2403.5,0.41632]
[1730775300430,3.2078,2403.8,2403.5,0.41632]
[1730775300632,3.62408,2403.8,2403.5,0.41632]
[1730775301937,0.41628,2403.8,2403.5,0.41632]
[1730775302129,3.62408,2403.8,2403.5,0.41632]
[1730775302533,0.41628,2403.8,2403.5,0.41632]
[1730775302734,3.2078,2403.8,2403.6,0.4163]
[1730775303239,3.2078,2403.8,2403.7,0.41628]
[1730775303453,3.2078,2404.1,2403.7,1.34984507]
[1730775303642,1.34984507,2404.4,2404.1,0.41622]
[1730775303643,1.992,2404.4,2404.1,0.41622]
[1730775304448,1.992,2404.4,2404.0,1.34984507]
[1730775304647,1.992,2404.4,2404.2,0.4162]
[1730775304948,1.992,2404.4,2404.0,1.34984507]
[1730775305139,1.992,2404.4,2403.8,1.3372]
[1730775305140,6.54964507,2404.4,2403.8,2.04074507]
[1730775305336,1.34984507,2404.2,2404.0,0.41623]
[1730775305540,1.34984507,2404.2,2403.9,0.41624]
[1730775305737,1.34984507,2404.2,2403.8,0.6909]
[1730775305938,6.96582507,2404.4,2404.0,0.41623]
[1730775306243,0.41619,2404.3,2404.0,0.41623]
[1730775306843,3.2078,2404.3,2403.8,2.04074507]
[1730775307443,3.62399,2404.3,2404.0,0.41623]
[1730775307942,3.62399,2404.3,2404.0,1.34984507]
[1730775307943,3.2078,2404.3,2404.0,1.34984507]
[1730775308146,3.2078,2404.3,2404.2,0.4162]
[1730775308840,3.2078,2404.3,2404.2,1.0485]
[1730775309549,1.992,2404.4,2404.2,1.0485]
[1730775309849,1.992,2404.4,2403.8,1.34984507]
[1730775309850,3.34184507,2404.4,2403.8,1.34984507]
[1730775310051,3.34184507,2404.4,2404.0,0.41623]
[1730775310351,3.75802507,2404.4,2404.0,0.41623]
[1730775310538,3.75802507,2404.4,2403.9,0.41625]
[1730775310539,3.2078,2404.2,2403.9,0.41625]
[1730775310750,3.2078,2404.2,2404.0,0.41623]
[1730775311355,0.6251,2404.1,2404.0,0.41623]
[1730775312561,0.6251,2404.1,2403.9,0.41624]
[1730775312852,0.6556,2404.0,2403.9,0.41624]
[1730775313051,1.3529,2404.0,2403.9,0.41624]
[1730775313252,1.3529,2404.0,2403.9,0.41626]
[1730775314060,1.3529,2404.0,2403.8,1.04856]
[1730775314361,0.41627,2403.9,2403.6,0.4163]
[1730775314660,1.76914,2404.0,2403.7,0.41628]
[1730775316955,4.97694,2404.0,2403.7,0.41628]
[1730775317952,1.76914,2404.0,2403.7,0.41628]
[1730775318253,4.97694,2404.0,2403.7,0.41628]
[1730775318856,1.76914,2404.0,2403.7,0.41628]
[1730775319463,4.97694,2404.0,2403.7,0.41628]
[1730775319763,1.3529,2404.0,2403.6,0.652]
[1730775319950,3.8634,2404.0,2403.7,1.34984507]
[1730775320152,3.8634,2404.0,2403.9,0.41626]
[1730775320654,3.8634,2404.0,2403.9,1.06266]
[1730775320858,3.8634,2404.0,2403.9,0.6464]
[1730775321358,3.8634,2404.0,2403.9,1.06266]
[1730775321860,3.8634,2404.0,2403.9,0.6464]
[1730775323461,3.8634,2404.0,2403.7,2.41402507]
[1730775323859,0.6556,2404.0,2403.7,2.41402507]
[1730775324058,3.8634,2404.0,2403.8,0.41627]
[1730775325262,3.8634,2404.0,2403.8,0.41626]
[1730775325463,3.8634,2404.0,2403.9,0.6289]
[1730775326059,0.6556,2404.0,2403.9,0.6289]
[1730775326261,0.6556,2404.0,2403.9,1.04516]
[1730775326456,0.6556,2404.0,2403.9,0.6289]
[1730775326660,0.6556,2404.0,2403.9,1.04516]
[1730775327962,3.2078,2404.1,2403.9,0.6289]
[1730775328169,3.2078,2404.1,2404.0,1.10194]
[1730775328467,1.3373,2404.3,2404.2,0.4162]
[1730775328468,0.6554,2404.3,2404.2,0.4162]
[1730775328666,0.6554,2404.3,2404.0,2.03554507]
[1730775328860,0.6554,2404.3,2404.1,0.41621]
[1730775331262,0.6554,2404.3,2404.2,0.6314]